bitfinex-derivatives/quotes_ETHF0:USTF0_20250604
["timestamp","ask_amount","ask_price","bid_price","bid_amount"]
[1749019800622,1.05572293,2632.5,2632.4,24.54113]
[1749019801225,1.81493293,2632.5,2632.4,24.54113]
[1749019802120,1.81548869,2632.5,2632.4,24.54113]
[1749019805327,1.88253471,2632.5,2632.4,24.54113]
[1749019806027,1.88433666,2632.5,2632.4,24.54113]
[1749019808021,1.88433666,2632.5,2632.4,22.5417]
[1749019809024,1.88433666,2632.5,2632.4,22.5297]
[1749019810028,1.88655061,2632.5,2632.4,22.5297]
[1749019810326,1.88655061,2632.5,2632.2,0.00569725]
[1749019810327,0.75926,2632.3,2632.2,0.00569725]
[1749019810626,1.81955459,2632.3,2632.2,0.00569725]
[1749019810823,6.81955459,2632.3,2632.2,0.00569725]
[1749019811138,8.07005459,2632.3,2632.2,0.00569725]
[1749019811432,3.07005459,2632.3,2632.2,0.00569725]
[1749019814044,3.06858061,2632.3,2632.2,0.00569725]
[1749019815232,3.06858061,2632.3,2632.2,0.38569725]
[1749019816131,3.06858061,2632.3,2632.2,0.00569725]
[1749019818023,3.06786408,2632.3,2632.2,0.00569725]
[1749019820428,3.1349101,2632.3,2632.2,0.00569725]
[1749019820629,1.8844101,2632.3,2632.2,0.00569725]
[1749019822133,1.88392005,2632.3,2632.2,0.00569725]
[1749019822334,1.88392005,2632.3,2632.2,1.14498725]
[1749019822834,1.88392005,2632.3,2632.2,2.42248725]
[1749019823025,1.88392005,2632.3,2632.2,6.15119725]
[1749019823231,1.88392005,2632.3,2632.2,4.87369725]
[1749019823534,1.88392005,2632.3,2632.2,5.63298725]
[1749019823826,1.88392005,2632.3,2632.2,0.00569725]
[1749019824629,1.88392005,2632.3,2632.2,0.63239725]
[1749019824835,1.88392005,2632.3,2632.2,1.39168725]
[1749019825036,1.88392005,2632.3,2632.2,2.69198725]
[1749019825534,1.88392005,2632.3,2632.2,1.93269725]
[1749019826037,1.88376741,2632.3,2632.2,0.00569725]
[1749019826232,1.88376741,2632.3,2632.2,17.77369725]
[1749019828239,1.88376741,2632.3,2632.2,7.25e-06]
[1749019828831,3.82396741,2632.3,2632.2,7.25e-06]
[1749019829839,3.824648,2632.3,2632.2,7.25e-06]
[1749019830230,8.824648,2632.3,2632.2,7.25e-06]
[1749019833838,8.83052959,2632.3,2632.2,7.25e-06]
[1749019836036,0.75947,2631.6,2631.5,4.869]
[1749019836240,1.82349357,2631.6,2631.5,0.38]
[1749019837442,1.82349357,2631.6,2631.5,1.6963]
[1749019837943,1.82349412,2631.6,2631.5,1.6963]
[1749019840746,1.82349412,2631.6,2631.5,17.763]
[1749019841942,1.82298433,2631.6,2631.5,17.763]
[1749019844346,1.82298433,2631.6,2631.5,18.967]
[1749019844743,1.82298433,2631.6,2631.5,17.764]
[1749019845243,1.82298433,2631.6,2631.5,0.38]
[1749019845447,1.82298433,2631.6,2631.5,17.764]
[1749019845745,0.75947,2631.6,2631.5,0.38]
[1749019845949,1.82303697,2631.6,2631.5,0.38]
[1749019846750,0.75949,2631.5,2631.4,0.38]
[1749019846951,0.75952,2631.4,2631.3,0.00569725]
[1749019847248,0.75952,2631.4,2631.3,7.25e-06]
[1749019847249,1.82308697,2631.4,2631.3,7.25e-06]
[1749019847445,3.13708697,2631.4,2631.3,7.25e-06]
[1749019847949,8.13708697,2631.4,2631.3,7.25e-06]
[1749019849352,3.13708697,2631.4,2631.3,7.25e-06]
[1749019850051,3.13613762,2631.4,2631.3,7.25e-06]
[1749019851641,3.13552366,2631.4,2631.3,7.25e-06]
[1749019854257,3.13498087,2631.4,2631.3,7.25e-06]
[1749019858256,3.13568241,2631.4,2631.3,7.25e-06]
[1749019860951,1.82168241,2631.4,2631.3,7.25e-06]
[1749019861152,0.75952,2631.4,2631.3,7.25e-06]
[1749019861452,1.82198846,2631.4,2631.3,7.25e-06]
[1749019863160,5.02978846,2631.4,2631.3,7.25e-06]
[1749019864756,3.96732,2631.4,2631.3,7.25e-06]
[1749019864963,5.03002328,2631.4,2631.3,7.25e-06]
[1749019866061,5.0970693,2631.4,2631.3,7.25e-06]
[1749019868765,4.03436602,2631.4,2631.3,7.25e-06]
[1749019869066,5.09756952,2631.4,2631.3,7.25e-06]
[1749019871763,0.7597,2630.8,2630.7,0.6042]
[1749019871957,1.8229035,2630.8,2630.7,0.6042]
[1749019872163,1.8229035,2630.8,2630.7,1e-05]
[1749019872367,0.75973,2630.7,2630.6,0.6022]
[1749019872562,1.8229335,2630.7,2630.6,0.6022]
[1749019872772,1.82382618,2630.7,2630.6,0.6022]
[1749019873169,1.82382618,2630.7,2630.6,5.6022]
[1749019875069,1.82382618,2630.7,2630.6,6.8246]
[1749019875270,1.82382618,2630.7,2630.6,7.4579]
[1749019875475,1.82382618,2630.7,2630.6,24.8459]
[1749019876376,1.82382618,2630.7,2630.6,19.8459]
[1749019876770,1.82568405,2630.7,2630.6,19.8459]
[1749019877577,1.82568405,2630.7,2630.6,24.8459]
[1749019879775,1.82568405,2630.7,2630.6,25.60565]
[1749019880573,1.82544484,2630.7,2630.6,25.60565]
[1749019880975,1.82544484,2630.7,2630.6,24.8459]
[1749019881274,1.89249086,2630.7,2630.6,24.8459]
[1749019882380,1.89249086,2630.7,2630.6,25.60565]
[1749019882682,0.75964,2631.1,2631.0,0.75961]
[1749019882980,0.75964,2631.1,2631.0,13.45741]
[1749019883168,0.7596,2631.2,2631.1,0.75956]
[1749019883574,0.7596,2631.2,2631.1,7.03826]
[1749019883876,0.75958,2631.3,2631.2,0.75954]
[1749019884072,0.75958,2631.3,2631.2,2.03824]
[1749019884581,0.75958,2631.3,2631.2,7.03824]
[1749019884779,2.37968725,2631.8,2631.3,1.89889]
[1749019884780,0.48109725,2631.8,2631.3,1.89889]
[1749019884987,0.75949,2631.6,2631.5,0.75945]
[1749019885484,0.75949,2631.6,2631.5,7.06475]
[1749019885885,0.75949,2631.6,2631.5,7.67125]
[1749019886186,0.75947,2631.7,2631.6,0.75944]
[1749019886486,0.75947,2631.7,2631.6,1.3053]
[1749019886680,0.75947,2631.7,2631.6,2.06477]
[1749019886879,0.75947,2631.7,2631.6,7.06477]
[1749019887182,0.48109725,2631.8,2631.7,0.75944]
[1749019887382,0.48109725,2631.8,2631.7,10.28554]
[1749019889685,0.00569725,2631.8,2631.7,10.28554]
[1749019890080,0.76510725,2631.8,2631.7,9.5261]
[1749019890390,0.76510725,2631.8,2631.7,26.3981]
[1749019891488,0.76510725,2631.8,2631.7,26.3971]
[1749019892390,0.76510725,2631.8,2631.7,25.83824]
[1749019894388,0.83215327,2631.8,2631.7,25.83824]
[1749019896188,0.7595,2631.5,2631.4,3.5878]
[1749019896491,0.7595,2631.5,2631.4,20.9678]
[1749019896786,0.7595,2631.5,2631.4,17.76]
[1749019898193,0.7595,2631.5,2631.4,18.51952]
[1749019899194,0.7595,2631.5,2631.4,18.13952]
[1749019899394,0.7595,2631.5,2631.4,21.72732]
[1749019899696,0.75946,2631.7,2631.6,0.75944]
[1749019901096,1.81196275,2631.7,2631.6,0.75944]
[1749019902298,1.05250275,2631.7,2631.6,0.75944]
[1749019902498,0.75944,2631.7,2631.6,0.75944]
[1749019903098,0.07274327,2631.8,2631.7,0.75944]
[1749019903395,0.07274327,2631.8,2631.7,3.96724]
[1749019903396,0.83215327,2631.8,2631.7,3.96724]
[1749019903598,0.83215327,2631.8,2631.7,8.45524]
[1749019904598,0.07274327,2631.8,2631.7,8.45524]
[1749019904998,0.83215327,2631.8,2631.7,8.45524]
[1749019905298,0.07274327,2631.8,2631.7,8.45524]
[1749019906395,0.83215327,2631.8,2631.7,8.45524]
[1749019907094,1.88649233,2631.8,2631.7,8.45524]
[1749019908400,1.88682361,2631.8,2631.7,8.45524]
[1749019911302,1.88682361,2631.8,2631.7,5.24744]
[1749019911599,1.88682361,2631.8,2631.7,8.45524]
[1749019911795,1.88856013,2631.8,2631.7,8.45524]
[1749019911995,1.88856013,2631.8,2631.7,5.24744]
[1749019912199,1.88856013,2631.8,2631.7,8.45524]
[1749019912399,1.88936998,2631.8,2631.7,8.45524]
[1749019916306,1.89001475,2631.8,2631.7,8.45524]
[1749019919609,0.7595,2631.5,2631.4,0.38]
[1749019919801,1.8205721,2631.5,2631.4,17.756]
[1749019920307,1.8206443,2631.5,2631.4,20.9638]
[1749019920505,1.8206443,2631.5,2631.4,21.72333]
[1749019921207,1.8206443,2631.5,2631.4,20.9638]
[1749019921896,1.8206443,2631.5,2631.4,21.72333]
[1749019922204,1.0611443,2631.5,2631.4,21.72333]
[1749019922702,0.8659,2631.7,2631.6,0.75947]
[1749019923001,0.07274327,2631.8,2631.7,0.75944]
[1749019923206,0.07274327,2631.8,2631.7,10.81184]
[1749019924802,0.00569725,2631.8,2631.7,10.81184]
[1749019925404,0.76510725,2631.8,2631.7,10.81184]
[1749019925708,0.00569725,2631.8,2631.7,10.81184]
[1749019925906,0.76510725,2631.8,2631.7,3.96724]
[1749019926114,1.39740725,2631.8,2631.7,4.486]
[1749019926303,2.72670725,2631.8,2631.7,21.862]
[1749019928709,2.72670725,2631.8,2631.7,21.862]
[1749019929411,0.75947,2631.6,2631.5,0.7595]
[1749019929613,0.75947,2631.6,2631.5,22.6205]
[1749019931216,0.75947,2631.6,2631.5,21.861]
[1749019931510,0.75947,2631.6,2631.5,21.862]
[1749019931707,0.75947,2631.6,2631.5,22.6215]
[1749019934113,0.75947,2631.6,2631.5,21.862]
[1749019934413,0.75946,2631.7,2631.6,0.75944]
[1749019934812,1.81490135,2631.7,2631.6,0.75944]
[1749019935315,1.05544135,2631.7,2631.6,0.75944]
[1749019935803,1.05544135,2631.7,2631.6,2.61104]
[1749019940021,1.12248737,2631.7,2631.6,2.61104]
[1749019942718,1.12246017,2631.7,2631.6,2.61104]
[1749019943222,1.2392,2631.9,2631.6,6.8516]
[1749019943223,0.4798,2631.9,2631.6,6.8516]
[1749019943519,0.6442,2632.2,2632.1,0.75932]
[1749019943712,0.6442,2632.2,2632.1,8.45212]
[1749019944319,1.4035,2632.2,2632.1,8.45212]
[1749019945924,1.4035,2632.2,2632.1,7.6928]
[1749019946127,1.4035,2632.2,2632.1,5.24432]
[1749019946420,1.4035,2632.2,2632.1,21.858]
[1749019947827,1.4035,2632.2,2632.1,22.61732]
[1749019948923,1.4035,2632.2,2632.1,5.24432]
[1749019949118,1.4035,2632.2,2632.1,21.857]
[1749019949527,1.4035,2632.2,2632.1,22.61632]
[1749019951827,1.4035,2632.2,2632.1,21.857]
[1749019952921,1.4035,2632.2,2632.1,22.61632]
[1749019954326,1.47054602,2632.2,2632.1,22.61632]
[1749019955217,2.52008376,2632.2,2632.1,22.61632]
[1749019957328,2.52007504,2632.2,2632.1,22.61632]
[1749019959933,1.76077504,2632.2,2632.1,22.61632]
[1749019960235,0.71124602,2632.2,2632.1,22.61632]
[1749019961523,0.06704602,2632.2,2632.1,22.61632]
[1749019961929,0.06704602,2632.2,2632.1,23.82612]
[1749019962129,1.11695935,2632.2,2632.1,22.61632]
[1749019962329,1.87624935,2632.2,2632.1,22.61632]
[1749019962525,1.11695935,2632.2,2632.1,22.61632]
[1749019966838,1.11774305,2632.2,2632.1,22.61632]
[1749019968439,1.11774305,2632.2,2632.1,24.51432]
[1749019969842,1.14196516,2632.2,2632.1,24.51432]
[1749019970845,1.14157814,2632.2,2632.1,24.51432]
[1749019971149,1.89734,2633.5,2633.2,0.75899]
[1749019971341,0.6264,2633.3,2633.2,0.75901]
[1749019971546,1.8461,2633.4,2633.2,0.75901]
[1749019971547,0.6089,2633.4,2633.3,0.75898]
[1749019972347,0.75898,2633.3,2633.2,17.368]
[1749019972546,0.75912,2632.9,2632.8,7.6898]
[1749019972744,0.75912,2632.9,2632.8,25.0578]
[1749019973846,1.40039,2633.0,2632.9,0.75909]
[1749019974047,2.72429,2633.0,2632.9,0.75909]
[1749019974640,1.9652,2633.0,2632.9,0.75909]
[1749019976050,0.75909,2632.9,2632.8,25.81691]
[1749019977351,2.72428,2633.0,2632.9,0.75909]
[1749019977847,1.9652,2633.0,2632.8,25.0578]
[1749019978047,2.72429,2633.0,2632.9,0.75909]
[1749019980258,0.75909,2632.9,2632.8,25.81691]
[1749019981452,0.75909,2632.9,2632.8,7.6898]
[1749019981757,0.75909,2632.9,2632.8,25.0538]
[1749019981958,1.98299,2632.9,2632.8,25.0538]
[1749019982460,1.40038,2633.0,2632.9,0.75909]
[1749019983056,2.4574834,2633.0,2632.9,0.75909]
[1749019984144,1.6984034,2633.0,2632.9,0.75909]
[1749019984350,2.4574634,2633.0,2632.9,0.75909]
[1749019984851,0.75909,2632.9,2632.8,25.8129]
[1749019985058,1.8161934,2632.9,2632.8,25.8129]
[1749019985457,0.75909,2632.9,2632.8,25.8129]
[1749019985659,1.88333296,2632.9,2632.8,25.0538]
[1749019985959,3.13773296,2632.9,2632.8,25.0538]
[1749019986256,3.13773296,2632.9,2632.8,7.6898]
[1749019986456,3.13773296,2632.9,2632.8,25.0528]
[1749019989557,3.13813251,2632.9,2632.8,25.0528]
[1749019990155,3.13813251,2632.9,2632.8,25.81192]
[1749019990457,3.13813251,2632.9,2632.8,25.0528]
[1749019991162,3.13813251,2632.9,2632.8,25.0528]
[1749019993562,3.13867689,2632.9,2632.8,25.0528]
[1749019994563,3.13867689,2632.9,2632.8,7.6898]
[1749019994864,0.75915,2632.7,2632.6,0.4282]
[1749019995054,0.75915,2632.7,2632.6,17.7902]
[1749019995250,1.81729087,2632.7,2632.6,0.4282]
[1749019995457,0.75927,2632.3,2632.2,0.38]
[1749019995663,0.75935,2632.0,2631.9,1.25149725]
[1749019995855,1.81749087,2632.0,2631.9,0.00569725]
[1749019996456,3.02649087,2632.0,2631.9,0.00569725]
[1749019996656,3.02649087,2632.0,2631.9,0.38569725]
[1749019997257,1.96835,2632.0,2631.9,0.38569725]
[1749019997562,3.02608291,2632.0,2631.9,0.38569725]
[1749019997759,3.02608291,2632.0,2631.9,17.36769725]
[1749019998957,3.02608291,2632.0,2631.9,17.74769725]
[1749020000963,3.09312893,2632.0,2631.9,17.74769725]
[1749020001258,2.03539602,2632.0,2631.9,17.74769725]
[1749020001456,3.09024269,2632.0,2631.9,17.74769725]
[1749020001651,1.88124269,2632.0,2631.9,18.50707725]
[1749020001855,1.88124269,2632.0,2631.9,17.74769725]
[1749020003063,1.88124269,2632.0,2631.9,17.37069725]
[1749020003265,1.88124269,2632.0,2631.9,18.13007725]
[1749020003964,1.12189269,2632.0,2631.9,18.13007725]
[1749020004262,1.12189269,2632.0,2631.9,19.95487725]
[1749020004463,0.06704602,2632.0,2631.9,24.95487725]
[1749020005360,0.06704602,2632.0,2631.9,25.33487725]
[1749020005764,0.00569725,2632.2,2632.1,0.75932]
[1749020006066,0.00569725,2632.2,2632.1,8.44712]
[1749020011364,0.76499725,2632.2,2632.1,25.81112]
[1749020012170,0.00569725,2632.2,2632.1,25.81112]
[1749020014272,0.76498725,2632.2,2632.1,7.6878]
[1749020014566,1.38838725,2632.2,2632.1,21.843]
[1749020014867,1.38838725,2632.2,2632.1,22.98232]
[1749020015068,1.45543327,2632.2,2632.1,26.19012]
[1749020015767,1.45543327,2632.2,2632.1,25.4308]
[1749020016768,1.45543327,2632.2,2632.1,26.19012]
[1749020017673,2.51143137,2632.2,2632.1,26.19012]
[1749020017874,2.51143137,2632.2,2632.1,25.4308]
[1749020018367,2.51143137,2632.2,2632.1,26.19012]
[1749020018568,2.51143137,2632.2,2632.1,25.4308]
[1749020019375,2.51143137,2632.2,2632.1,26.19012]
[1749020021376,1.45543327,2632.2,2632.1,26.19012]
[1749020021676,2.52894005,2632.2,2632.1,26.19012]
[1749020024076,2.52894005,2632.2,2632.1,25.4308]
[1749020024466,2.52894005,2632.2,2632.1,8.0678]
[1749020024670,2.52894005,2632.2,2632.1,25.4308]
[1749020025682,0.75935,2632.0,2631.9,0.00569725]
[1749020025977,1.8339098,2632.0,2631.9,0.00569725]
[1749020029478,1.83341591,2632.0,2631.9,0.00569725]
[1749020030279,5.10826193,2632.0,2631.9,0.00569725]
[1749020030984,5.10806949,2632.0,2631.9,0.00569725]
[1749020032175,5.10795507,2632.0,2631.9,0.00569725]
[1749020032480,9.03419602,2632.0,2631.9,0.00569725]
[1749020032677,0.75947,2631.6,2631.5,4.48]
[1749020032879,0.7595,2631.5,2631.4,3.5878]
[1749020033085,3.04675264,2631.5,2631.4,20.9518]
[1749020033683,3.04675264,2631.5,2631.4,20.5718]
[1749020033985,3.04628697,2631.5,2631.4,20.5718]
[1749020037784,1.973,2631.5,2631.4,20.5718]
[1749020037983,3.04529603,2631.5,2631.4,20.5718]
[1749020040783,0.75953,2631.4,2631.3,0.38]
[1749020040974,1.83182603,2631.4,2631.3,17.746]
[1749020042685,1.83182603,2631.4,2631.3,18.50555]
[1749020042987,1.83182603,2631.4,2631.3,17.746]
[1749020045088,1.83182603,2631.4,2631.3,18.50555]
[1749020045382,1.83182603,2631.4,2631.3,17.746]
[1749020045588,1.89887205,2631.4,2631.3,17.746]
[1749020046189,1.89887205,2631.4,2631.3,18.50555]
[1749020046389,1.13934205,2631.4,2631.3,23.00995]
[1749020046786,1.89887205,2631.4,2631.3,23.00995]
[1749020048387,1.89887205,2631.4,2631.3,22.2504]
[1749020048388,0.82657602,2631.4,2631.3,22.2504]
[1749020048582,1.89880407,2631.4,2631.3,22.2504]
[1749020049187,1.89880407,2631.4,2631.3,25.4338]
[1749020049892,1.89880407,2631.4,2631.3,22.226]
[1749020050094,1.89880407,2631.4,2631.3,25.4338]
[1749020050798,1.89880407,2631.4,2631.2,0.87169725]
[1749020050799,0.75955,2631.3,2631.2,0.87169725]
[1749020051101,2.47137805,2631.3,2631.2,17.37169725]
[1749020051285,3.08687805,2631.3,2631.2,0.00569725]
[1749020051485,4.37247805,2631.3,2631.2,0.00569725]
[1749020052388,4.37361498,2631.3,2631.2,0.00569725]
[1749020053988,7.58141498,2631.3,2631.2,0.00569725]
[1749020054384,12.58141498,2631.3,2631.2,7.25e-06]
[1749020056397,12.58140473,2631.3,2631.2,7.25e-06]
[1749020057794,12.58054637,2631.3,2631.2,7.25e-06]
[1749020060303,12.57958091,2631.3,2631.2,7.25e-06]
[1749020060800,12.64662693,2631.3,2631.2,7.25e-06]
[1749020064087,7.64662693,2631.3,2631.2,7.25e-06]
[1749020064292,7.64609674,2631.3,2631.2,7.25e-06]
[1749020066191,6.36049674,2631.3,2631.2,7.25e-06]
[1749020067099,7.60399674,2631.3,2631.2,7.25e-06]
[1749020068496,6.36036409,2631.3,2631.2,7.25e-06]
[1749020068689,1.89746409,2631.3,2631.2,7.25e-06]
[1749020068891,1.89746409,2631.3,2631.2,2.55030725]
[1749020069192,1.89746409,2631.3,2631.2,3.30988725]
[1749020069400,1.89746409,2631.3,2631.2,2.55030725]
[1749020072295,0.82659602,2631.3,2631.2,2.55030725]
[1749020072499,0.82659602,2631.3,2631.2,7.25e-06]
[1749020072695,1.89739973,2631.3,2631.2,7.25e-06]
[1749020073602,3.19829973,2631.3,2631.2,7.25e-06]
[1749020073899,8.19829973,2631.3,2631.2,7.25e-06]
[1749020074505,3.19829973,2631.3,2631.2,7.25e-06]
[1749020080205,3.20122637,2631.3,2631.2,7.25e-06]
[1749020080601,8.20122637,2631.3,2631.2,7.25e-06]
[1749020083109,3.20122637,2631.3,2631.2,7.25e-06]
[1749020083412,7.68122637,2631.3,2631.2,7.25e-06]
[1749020084305,7.68208536,2631.3,2631.2,7.25e-06]
[1749020084810,12.68208536,2631.3,2631.2,7.25e-06]
[1749020085108,0.75981,2630.4,2630.3,0.6145]
[1749020085412,1.83439934,2630.4,2630.3,0.6145]
[1749020085712,0.75984,2630.3,2630.2,0.38]
[1749020085906,1.83442934,2630.3,2630.2,0.38]
[1749020088806,1.83442934,2630.3,2630.2,1.6521]
[1749020089305,1.83442934,2630.3,2630.2,1.2721]
[1749020091013,1.90147536,2630.3,2630.2,1.2721]
[1749020092307,1.90147536,2630.3,2630.2,2.03197]
[1749020092308,1.89972594,2630.3,2630.2,2.03197]
[1749020092717,1.89965445,2630.3,2630.2,2.03197]
[1749020093719,1.89965445,2630.3,2630.2,1.2721]
[1749020094016,0.7599,2630.1,2630.0,8.16e-06]
[1749020094318,5.04046843,2630.1,2630.0,8.16e-06]
[1749020094816,6.28196843,2630.1,2630.0,8.16e-06]
[1749020095709,5.04046843,2630.1,2630.0,8.16e-06]
[1749020096214,5.03977564,2630.1,2630.0,8.16e-06]
[1749020097613,1.83197564,2630.1,2630.0,8.16e-06]
[1749020097813,1.83197564,2630.1,2630.0,1.26770816]
[1749020099612,1.83197564,2630.1,2630.0,2.02763816]
[1749020099920,1.83197564,2630.1,2630.0,1.26770816]
[1749020100707,0.06704602,2630.3,2630.2,0.75987]
[1749020100708,0.82689602,2630.3,2630.2,0.75987]
[1749020100912,0.82689602,2630.3,2630.2,18.12987]
[1749020101115,1.89800118,2630.3,2630.2,18.12987]
[1749020101318,1.89800118,2630.3,2630.2,17.9743]
[1749020101725,1.89800118,2630.3,2630.2,18.73417]
[1749020102424,1.89800118,2630.3,2630.2,17.9743]
[1749020102816,1.89800118,2630.3,2630.2,18.73417]
[1749020103122,1.89800118,2630.3,2630.2,19.2359]
[1749020103517,1.89800118,2630.3,2630.2,19.99577]
[1749020103922,1.89800118,2630.3,2630.2,24.99577]
[1749020104421,1.13815118,2630.3,2630.2,29.47477]
[1749020106218,1.89799118,2630.3,2630.2,29.47477]
[1749020106620,1.8997205,2630.3,2630.2,29.47477]
[1749020107226,1.8997205,2630.3,2630.2,32.68257]
[1749020110626,1.90002251,2630.3,2630.2,32.68257]
[1749020110929,1.90006296,2630.3,2630.2,32.68257]
[1749020114428,1.90006296,2630.3,2630.2,27.68257]
[1749020114628,1.89988913,2630.3,2630.2,27.68257]
[1749020116924,1.14004913,2630.3,2630.2,27.68257]
[1749020117428,1.89988913,2630.3,2630.2,27.68257]
[1749020117628,1.14004913,2630.3,2630.2,27.68257]
[1749020118329,1.89988913,2630.3,2630.2,27.68257]
[1749020118725,1.89978967,2630.3,2630.2,7.6868]
[1749020118932,0.75987,2630.2,2630.1,18.2325]
[1749020119134,1.83277365,2630.2,2630.1,17.366]
[1749020119330,1.83277365,2630.2,2630.1,0.7599]
[1749020119634,1.83277365,2630.2,2630.1,18.1259]
[1749020120431,1.07290365,2630.2,2630.1,18.1259]
[1749020121133,1.83277365,2630.2,2630.1,18.1259]
[1749020122628,0.75987,2630.2,2630.1,18.1259]
[1749020123032,1.83281664,2630.2,2630.1,18.1259]
[1749020123630,1.07294664,2630.2,2630.1,18.1259]
[1749020124031,1.83281664,2630.2,2630.1,18.1259]
[1749020124239,1.83281664,2630.2,2630.1,19.3406]
[1749020124839,1.83281664,2630.2,2630.1,18.1259]
[1749020125440,1.07294664,2630.2,2630.1,18.1259]
[1749020125641,0.82691602,2630.3,2630.2,0.75987]
[1749020126134,1.90067947,2630.3,2630.2,0.75987]
[1749020126744,1.90118533,2630.3,2630.2,0.75987]
[1749020130837,1.9024001,2630.3,2630.2,0.75987]
[1749020134959,1.90186029,2630.3,2630.2,0.75987]
[1749020137958,0.82691602,2630.3,2630.2,0.75987]
[1749020138258,1.90193167,2630.3,2630.2,0.75987]
[1749020138957,1.90195029,2630.3,2630.2,0.75987]
[1749020139754,1.90195029,2630.3,2630.2,18.12487]
[1749020140160,0.7599,2630.1,2630.0,8.16e-06]
[1749020140465,1.83493427,2630.1,2630.0,8.16e-06]
[1749020140756,1.83493427,2630.1,2630.0,18.12493816]
[1749020140957,1.07503427,2630.1,2630.0,18.12493816]
[1749020142758,0.06704602,2630.3,2630.2,0.75987]
[1749020143059,1.14180884,2630.3,2630.2,0.75987]
[1749020143965,1.14180884,2630.3,2630.2,3.96767]
[1749020144459,1.90164884,2630.3,2630.2,3.96767]
[1749020145265,1.90164884,2630.3,2630.2,21.33267]
[1749020145669,1.90164884,2630.3,2630.2,18.12487]
[1749020146264,0.7599,2630.1,2630.0,0.75991816]
[1749020146473,1.83466282,2630.1,2630.0,22.60091816]
[1749020146772,0.7599,2630.1,2630.0,22.60091816]
[1749020146967,0.75989,2630.2,2630.1,0.75987]
[1749020147165,1.83478622,2630.2,2630.1,0.75987]
[1749020150871,1.83501468,2630.2,2630.1,0.75987]
[1749020151173,1.07512468,2630.2,2630.1,0.75987]
[1749020151375,1.07512468,2630.2,2630.1,1.36367]
[1749020151568,1.07512468,2630.2,2630.1,2.67897]
[1749020152873,1.78924,2630.4,2630.3,0.75984]
[1749020153068,2.86428729,2630.4,2630.3,0.75984]
[1749020153269,2.86428729,2630.4,2630.3,3.96764]
[1749020154377,2.44028729,2630.4,2630.3,3.96764]
[1749020154976,2.44028413,2630.4,2630.3,3.96764]
[1749020155176,2.44028402,2630.4,2630.3,3.96764]
[1749020155476,1.68044402,2630.4,2630.3,3.96764]
[1749020158974,0.6054,2630.4,2630.3,3.96764]
[1749020159179,1.68006939,2630.4,2630.3,8.44264]
[1749020160281,1.07466939,2630.4,2630.3,8.44264]
[1749020160776,1.07466939,2630.4,2630.3,8.74086101]
[1749020161669,0.43039725,2630.5,2630.4,0.75981]
[1749020162066,1.50502134,2630.5,2630.4,0.75981]
[1749020163781,1.50502134,2630.5,2630.4,3.96761]
[1749020164190,1.57206736,2630.5,2630.4,3.96761]
[1749020165081,1.57206736,2630.5,2630.4,6.49861]
[1749020165593,1.5712144,2630.5,2630.4,6.49861]
[1749020168283,0.6285,2631.1,2631.0,0.75964]
[1749020168484,0.6285,2631.1,2631.0,18.12064]
[1749020169986,1.38811,2631.1,2631.0,18.12064]
[1749020174692,0.6285,2631.1,2631.0,18.12064]
[1749020174893,1.38811,2631.1,2631.0,18.12064]
[1749020175592,0.6285,2631.1,2631.0,18.12064]
[1749020175795,1.38811,2631.1,2631.0,18.12064]
[1749020179290,1.45515602,2631.1,2631.0,18.12064]
[1749020180289,2.52217213,2631.1,2631.0,17.361]
[1749020180685,0.75964,2631.0,2630.9,7.6828]
[1749020180886,1.82665611,2631.0,2630.9,25.0398]
[1749020181080,1.82665611,2631.0,2630.9,25.79947]
[1749020181481,1.82665611,2631.0,2630.9,8.44247]
[1749020181683,0.75964,2631.0,2630.9,3.2078]
[1749020181992,0.7597,2630.8,2630.7,4.474]
[1749020182193,1.82484707,2630.8,2630.7,21.83]
[1749020182893,3.06134707,2630.8,2630.7,22.21]
[1749020183192,3.06134707,2630.8,2630.7,22.96973]
[1749020183994,3.06134707,2630.8,2630.7,5.61373]
[1749020184294,3.06134707,2630.8,2630.7,22.21]
[1749020184794,3.06134707,2630.8,2630.7,22.211]
[1749020185392,3.06134707,2630.8,2630.7,1.13973]
[1749020185691,0.75976,2630.6,2630.5,1.13979]
[1749020185888,1.82579502,2630.6,2630.5,1.13979]
[1749020186093,1.82579502,2630.6,2630.5,18.49579]
[1749020187186,1.82579502,2630.6,2630.5,1.13979]
[1749020187390,1.82591456,2630.6,2630.5,17.736]
[1749020187588,1.82591456,2630.6,2630.5,0.38]
[1749020187795,1.82591456,2630.6,2630.5,17.737]
[1749020188095,1.82591456,2630.6,2630.5,0.38]
[1749020188492,1.82591456,2630.6,2630.5,17.737]
[1749020189198,1.82591456,2630.6,2630.5,18.49678]
[1749020189790,1.82589113,2630.6,2630.5,18.49678]
[1749020191898,1.82589113,2630.6,2630.5,17.737]
[1749020193901,1.82319431,2630.6,2630.5,17.737]
[1749020194593,1.82319431,2630.6,2630.5,0.38]
[1749020195001,1.82319431,2630.6,2630.5,17.737]
[1749020195501,1.89024033,2630.6,2630.5,17.737]
[1749020195799,0.75987,2630.2,2630.1,4.853]
[1749020195993,0.75987,2630.2,2630.1,22.21]
[1749020196193,1.82330431,2630.2,2630.1,22.21]
[1749020196411,2.45240431,2630.2,2630.1,22.21]
[1749020196901,2.45240431,2630.2,2630.1,22.9699]
[1749020197196,2.45240431,2630.2,2630.1,22.21]
[1749020197404,1.82330431,2630.2,2630.1,22.9699]
[1749020197900,1.82244457,2630.2,2630.1,22.9699]
[1749020198603,1.06257457,2630.2,2630.1,22.9699]
[1749020198899,1.06257457,2630.2,2630.1,24.7927]
[1749020200400,1.82244457,2630.2,2630.1,24.7927]
[1749020201300,1.06257457,2630.2,2630.1,24.7927]
[1749020201604,1.82244457,2630.2,2630.1,24.7927]
[1749020201903,1.82685773,2630.2,2630.1,24.7927]
[1749020208109,1.82685773,2630.2,2630.1,5.6129]
[1749020208408,1.82685773,2630.2,2630.1,22.9709]
[1749020209414,1.06698773,2630.2,2630.1,22.9709]
[1749020209808,1.06698773,2630.2,2630.1,24.2307]
[1749020210009,0.75985,2630.4,2630.3,0.75982]
[1749020210205,1.82765384,2630.4,2630.3,0.75982]
[1749020210812,0.75985,2630.3,2630.2,1.37545]
[1749020211014,1.82765384,2630.3,2630.2,1.37545]
[1749020213109,1.82845204,2630.3,2630.2,1.37545]